bitfinex/quotes_SOLUSD_20241031
["timestamp","ask_amount","ask_price","bid_price","bid_amount"]
[1730400928935,0.12549,169.58,169.54,8.90174504]
[1730400929145,0.12549,169.58,169.53,8.90174504]
[1730400929429,14.79684504,169.63,169.57,8.90174504]
[1730400929629,15.365,169.67,169.59,8.90174504]
[1730400929824,8.90174504,169.65,169.6,8.90174504]
[1730400930135,8.90174504,169.65,169.59,8.90174504]
[1730400930816,0.12549,169.65,169.61,8.90174504]
[1730400931329,0.12549,169.65,169.6,8.90174504]
[1730400932026,6.02019,169.65,169.6,8.90174504]
[1730400933032,6.02019,169.65,169.6,14.79774504]
[1730400933419,14.92193504,169.65,169.6,5.896]
[1730400933932,14.92193504,169.65,169.6,14.79774504]
[1730400935430,6.02019,169.65,169.6,14.79774504]
[1730400936940,5.8947,169.65,169.6,14.79774504]
[1730400937231,5.8938,169.67,169.62,8.90174504]
[1730400937929,0.12549,169.68,169.63,8.90174504]
[1730400938129,8.90174504,169.67,169.61,8.90174504]
[1730400938334,8.90174504,169.65,169.6,30.2524]
[1730400938514,8.90174504,169.65,169.6,36.1486]
[1730400939425,14.79644504,169.65,169.6,36.1486]
[1730400941433,0.12549,169.65,169.6,45.05034504]
[1730400942139,5.8941,169.66,169.62,8.90174504]
[1730400942322,8.90174504,169.69,169.64,8.90174504]
[1730400942731,8.90174504,169.69,169.63,8.90174504]
[1730400943338,8.90174504,169.69,169.6,65.6297]
[1730400943339,8.90174504,169.68,169.62,8.90174504]
[1730400943536,8.90174504,169.67,169.62,5.8954]
[1730400943841,8.90174504,169.66,169.62,5.8954]
[1730400944145,8.90174504,169.67,169.62,20.6342]
[1730400945146,24.153354,169.66,169.61,8.90174504]
[1730400945319,8.90174504,169.63,169.59,14.7412]
[1730400945743,8.90174504,169.64,169.59,14.7412]
[1730400945932,8.90174504,169.65,169.59,29.53944504]
[1730400946127,0.12549,169.64,169.59,29.53944504]
[1730400946726,9.02723504,169.64,169.59,20.6377]
[1730400946929,14.92223504,169.64,169.59,20.6377]
[1730400947834,14.92223504,169.64,169.59,14.7412]
[1730400948036,6.02049,169.64,169.59,23.64294504]
[1730400948342,14.92223504,169.64,169.59,23.64294504]
[1730400950628,14.92223504,169.64,169.59,29.53944504]
[1730400950828,14.92223504,169.64,169.59,20.6377]
[1730400952461,8.90174504,169.61,169.56,15.7016]
[1730400952743,8.90174504,169.61,169.56,36.3429]
[1730400952947,8.90174504,169.61,169.56,45.24464504]
[1730400953121,8.90174504,169.62,169.56,45.24464504]
[1730400953742,14.79744504,169.62,169.56,45.24464504]
[1730400955753,8.90174504,169.66,169.61,8.90174504]
[1730400956543,8.90174504,169.65,169.6,8.90174504]
[1730400956867,8.90174504,169.66,169.61,5.8958]
[1730400957148,14.7321,169.7,169.61,5.8958]
[1730400957149,8.90174504,169.65,169.61,5.8958]
[1730400957835,8.90174504,169.65,169.59,8.90174504]
[1730400958147,8.90174504,169.65,169.61,14.7396]
[1730400959743,14.92203504,169.64,169.59,5.8964]
[1730400960052,8.90174504,169.63,169.57,8.90174504]
[1730400960243,8.90174504,169.62,169.56,30.50064504]
[1730400960554,8.90174504,169.63,169.57,8.90174504]
[1730400961147,14.79714504,169.63,169.58,5.8969]
[1730400961655,8.90174504,169.62,169.58,5.8969]
[1730400962759,14.79714504,169.63,169.58,5.8969]
[1730400963735,8.90174504,169.62,169.58,5.8969]
[1730400964032,9.02723504,169.59,169.53,14.7463]
[1730400964234,8.90174504,169.57,169.53,20.6448]
[1730400964438,8.90174504,169.56,169.53,14.7463]
[1730400965130,8.90174504,169.55,169.51,15.2297]
[1730400965332,8.90174504,169.56,169.51,21.1289]
[1730400965551,8.90174504,169.55,169.51,21.1289]
[1730400965737,8.90174504,169.56,169.51,21.1289]
[1730400965939,8.90174504,169.58,169.52,8.90174504]
[1730400966157,0.12549,169.57,169.52,8.90174504]
[1730400966854,8.90174504,169.6,169.54,8.90174504]
[1730400967038,8.90174504,169.59,169.53,8.90174504]
[1730400968857,8.90174504,169.59,169.54,20.644]
[1730400969160,21.3642,169.64,169.53,5.8986]
[1730400969161,8.90174504,169.57,169.53,5.8986]
[1730400970042,8.90174504,169.59,169.54,8.90174504]
[1730400970247,8.90174504,169.6,169.54,8.90174504]
[1730400970641,0.12549,169.59,169.54,14.79974504]
[1730400971161,6.02209,169.59,169.54,14.79974504]
[1730400971660,14.79724504,169.62,169.56,8.90174504]
[1730400971965,8.90174504,169.61,169.55,8.90174504]
[1730400972272,14.79724504,169.62,169.56,8.90174504]
[1730400972439,8.90174504,169.62,169.56,8.90174504]
[1730400972639,8.90174504,169.62,169.57,20.6403]
[1730400973058,8.90174504,169.62,169.57,29.54204504]
[1730400973258,14.79704504,169.63,169.57,29.54204504]
[1730400973441,8.90174504,169.66,169.6,8.90174504]
[1730400974758,14.79544504,169.67,169.61,8.90174504]
[1730400975840,14.79544504,169.67,169.61,14.79744504]
[1730400976256,14.79544504,169.67,169.62,8.90174504]
[1730400977060,14.79544504,169.67,169.61,8.90174504]
[1730400978364,14.79544504,169.67,169.61,14.79744504]
[1730400980651,8.90174504,169.66,169.61,14.79744504]
[1730400980857,8.90174504,169.65,169.61,5.8957]
[1730400981165,8.90174504,169.66,169.61,5.8957]
[1730400981775,14.79614504,169.66,169.61,5.8957]
[1730400982375,14.79614504,169.66,169.61,14.79744504]
[1730400983369,14.79614504,169.66,169.6,8.90174504]
[1730400985383,14.79614504,169.66,169.61,5.8958]
[1730400985887,14.79614504,169.66,169.61,14.79754504]
[1730400986460,5.8937,169.67,169.62,8.90174504]
[1730400986660,38.82310904,169.68,169.62,8.90174504]
[1730400986880,8.90174504,169.67,169.61,29.53714504]
[1730400987564,5.8941,169.66,169.61,29.53714504]
[1730400990663,8.90174504,169.65,169.61,14.7396]
[1730400990865,8.90174504,169.64,169.58,46.02894504]
[1730400991070,8.90174504,169.62,169.58,20.6388]
[1730400991288,8.90174504,169.62,169.56,14.79924504]
[1730400992569,8.90174504,169.61,169.56,5.8975]
[1730400992770,14.79794504,169.6,169.54,24.31674504]
[1730400993491,14.79794504,169.6,169.54,30.21494504]
[1730400994296,8.90174504,169.63,169.57,8.90174504]
[1730400994599,6.02109,169.62,169.57,8.90174504]
[1730400994790,6.02109,169.62,169.57,14.79874504]
[1730400994984,14.92283504,169.62,169.57,5.897]
[1730400995286,8.90174504,169.61,169.57,5.897]
[1730400996094,14.92283504,169.62,169.57,5.897]
[1730400997792,6.02109,169.62,169.57,8.90174504]
[1730400998296,6.02109,169.62,169.55,5.8979]
[1730400998297,9.02723504,169.6,169.55,5.8979]
[1730400999277,9.02723504,169.6,169.55,14.79964504]
[1730400999474,8.90174504,169.61,169.56,8.90174504]
[1730400999681,8.90174504,169.62,169.56,8.90174504]
[1730401000000,0.12549,169.61,169.56,8.90174504]
[1730401000571,14.92233504,169.63,169.57,8.90174504]
[1730401000794,0.12549,169.62,169.57,8.90174504]
[1730401001406,9.02723504,169.62,169.56,8.90174504]
[1730401001610,9.02723504,169.62,169.57,29.54204504]
[1730401003283,8.90174504,169.61,169.57,20.6403]
[1730401003488,8.90174504,169.63,169.57,29.54204504]
[1730401004000,0.12549,169.63,169.58,8.90174504]
[1730401004796,8.90174504,169.67,169.61,8.90174504]
[1730401005000,8.90174504,169.66,169.61,8.90174504]
[1730401005983,8.90174504,169.66,169.6,8.90174504]
[1730401006184,8.90174504,169.65,169.6,29.53844504]
[1730401006694,8.90174504,169.65,169.6,20.6367]
[1730401007887,8.90174504,169.61,169.55,8.90174504]
[1730401008081,8.90174504,169.61,169.55,14.79954504]
[1730401008286,8.90174504,169.61,169.56,8.90174504]
[1730401009007,8.90174504,169.61,169.55,14.79954504]
[1730401009211,14.79774504,169.61,169.55,29.54444504]
[1730401009884,8.90174504,169.6,169.55,29.54444504]
[1730401010084,14.79794504,169.6,169.55,20.6427]
[1730401010687,14.79794504,169.6,169.55,29.54444504]
[1730401010887,14.79794504,169.6,169.55,20.6427]
[1730401011102,8.90174504,169.6,169.55,20.6427]
[1730401011304,8.90174504,169.59,169.55,20.6427]
[1730401012213,0.08,169.58,169.55,29.54444504]
[1730401014505,0.08,169.58,169.56,8.90174504]
[1730401015886,0.08,169.58,169.57,14.79894504]
[1730401018693,0.08,169.58,169.57,14.92443504]
[1730401019397,0.08,169.58,169.57,34.92443504]
[1730401019599,14.79484504,169.69,169.64,8.90174504]
[1730401019798,0.12549,169.68,169.64,8.90174504]
[1730401020110,0.12549,169.68,169.63,14.79654504]
[1730401020299,0.12549,169.68,169.63,29.53444504]
[1730401020494,21.3653,169.74,169.65,8.90174504]
[1730401020495,14.79414504,169.71,169.65,8.90174504]
[1730401020695,14.79414504,169.71,169.66,8.90174504]
[1730401021019,14.79414504,169.71,169.65,8.90174504]
[1730401021512,8.90174504,169.68,169.63,29.53444504]
[1730401021807,14.79484504,169.69,169.64,8.90174504]
[1730401022012,14.79484504,169.69,169.63,29.53444504]
[1730401022193,14.79484504,169.69,169.64,8.90174504]
[1730401022696,5.8931,169.69,169.64,8.90174504]
[1730401023208,14.79484504,169.69,169.64,8.90174504]
[1730401023425,14.79484504,169.69,169.64,14.79624504]
[1730401023790,9.02723504,169.68,169.63,14.7379]
[1730401024013,8.90174504,169.66,169.63,14.7379]
[1730401024209,8.90174504,169.65,169.6,8.90174504]
[1730401024410,8.90174504,169.65,169.61,5.8957]
[1730401024604,8.90174504,169.66,169.61,5.8957]
[1730401025512,8.90174504,169.66,169.61,20.6353]
[1730401025711,8.90174504,169.66,169.61,29.53704504]
[1730401026413,8.90174504,169.65,169.61,20.6353]
[1730401026598,13.9167487,169.64,169.59,19.8131487]
[1730401026802,13.9167487,169.62,169.58,14.7421]
[1730401027005,13.9167487,169.61,169.58,14.7421]
[1730401027402,13.9167487,169.62,169.57,13.9167487]
[1730401027615,13.9167487,169.64,169.59,13.9167487]
[1730401027994,20.0621287,169.65,169.59,13.9167487]
[1730401028418,14.1677287,169.65,169.59,13.9167487]
[1730401028817,13.9167487,169.64,169.58,13.9167487]
[1730401029610,19.8116487,169.64,169.59,5.8965]
[1730401029805,13.9167487,169.63,169.59,5.8965]
[1730401030119,19.8116487,169.64,169.59,5.8965]
[1730401030316,13.9167487,169.63,169.59,5.8965]
[1730401030630,13.9167487,169.63,169.58,14.7421]
[1730401030631,19.8120487,169.63,169.58,20.639]
[1730401030920,13.9167487,169.62,169.58,20.639]
[1730401032000,13.9167487,169.62,169.58,14.7421]
[1730401032519,13.9167487,169.63,169.58,14.7421]
[1730401032925,13.9167487,169.61,169.58,14.7421]
[1730401033225,19.8122487,169.63,169.58,14.7421]
[1730401034201,19.8122487,169.63,169.58,20.639]
[1730401034719,19.8122487,169.63,169.58,34.5557487]
[1730401034921,13.9167487,169.63,169.58,34.5557487]
[1730401035221,13.9167487,169.65,169.6,13.9167487]
[1730401035431,13.9167487,169.65,169.59,13.9167487]
[1730401035719,19.8111487,169.65,169.59,13.9167487]
[1730401035919,13.9167487,169.64,169.58,34.5557487]
[1730401037512,13.9167487,169.63,169.58,34.5557487]
[1730401038627,13.9167487,169.64,169.58,34.5557487]
[1730401038922,13.9167487,169.64,169.59,13.9167487]
[1730401039811,13.9167487,169.64,169.6,5.8962]
[1730401041216,19.8114487,169.65,169.6,5.8962]
[1730401042333,13.9167487,169.64,169.58,13.9167487]
[1730401042826,13.9167487,169.63,169.58,13.9167487]
[1730401043013,13.9167487,169.62,169.56,43.4038487]
[1730401043541,13.9167487,169.64,169.58,13.9167487]
[1730401044206,19.8115487,169.64,169.59,5.8965]
[1730401044508,13.9167487,169.63,169.59,20.6379]
[1730401045521,5.8948,169.64,169.59,34.5546487]
[1730401045908,19.8113487,169.65,169.59,34.5546487]
[1730401046329,13.9167487,169.67,169.61,13.9167487]
[1730401046709,8.90515927,169.68,169.62,8.90515927]
[1730401047228,8.90515927,169.67,169.61,8.90515927]
[1730401047733,14.79865927,169.68,169.63,5.8951]
[1730401047908,8.90515927,169.69,169.64,8.90515927]
[1730401048107,14.79785927,169.7,169.64,8.90515927]
[1730401048731,8.90515927,169.7,169.64,8.90515927]
[1730401049036,14.79755927,169.71,169.66,8.90515927]
[1730401049622,14.79755927,169.71,169.65,8.90515927]
[1730401049836,8.90515927,169.71,169.66,5.8941]
[1730401050410,8.90515927,169.71,169.66,29.53455927]
[1730401050713,8.90515927,169.73,169.67,8.90515927]
[1730401051118,8.90515927,169.72,169.67,8.90515927]
[1730401051435,8.90515927,169.73,169.67,8.90515927]
[1730401051737,14.79685927,169.73,169.68,5.8934]
[1730401052514,8.90515927,169.72,169.68,5.8934]
[1730401053031,14.79725927,169.72,169.67,5.8937]
[1730401053330,5.8921,169.72,169.67,14.79885927]
[1730401054046,8.90515927,169.71,169.67,20.6281]
[1730401054217,8.90515927,169.71,169.66,5.8941]
[1730401054416,8.90515927,169.69,169.65,5.8944]
[1730401055139,8.90515927,169.69,169.64,14.7366]
[1730401055350,8.90515927,169.69,169.64,20.6314]
[1730401055554,8.90515927,169.67,169.62,5.8953]
[1730401055848,0.1,169.72,169.61,16.2105]
[1730401056030,8.90515927,169.64,169.6,20.6361]
[1730401056525,8.90515927,169.64,169.6,14.7399]
[1730401056731,8.90515927,169.63,169.6,14.7399]
[1730401057255,8.90515927,169.66,169.6,29.54125927]
[1730401057457,8.90515927,169.69,169.63,8.90515927]
[1730401057947,8.90515927,169.68,169.62,8.90515927]
[1730401058327,8.90515927,169.68,169.63,8.90515927]
[1730401058527,8.90515927,169.69,169.63,8.90515927]
[1730401058733,8.90515927,169.68,169.63,8.90515927]
[1730401059445,8.90515927,169.68,169.63,14.80005927]
[1730401059826,8.90515927,169.68,169.63,5.8949]
[1730401060232,8.90515927,169.67,169.63,5.8949]
[1730401060732,13.91367679,169.67,169.63,5.8949]
[1730401060922,13.91367679,169.66,169.62,14.7382]
[1730401061126,13.91367679,169.65,169.6,19.80977679]
[1730401061327,13.91367679,169.66,169.6,13.91367679]
[1730401062257,13.91367679,169.67,169.61,13.91367679]
[1730401063243,13.91367679,169.66,169.6,13.91367679]
[1730401063651,13.91367679,169.66,169.61,13.91367679]
[1730401064636,13.91367679,169.67,169.61,13.91367679]
[1730401065156,19.80737679,169.68,169.62,13.91367679]
[1730401065452,19.80737679,169.68,169.63,5.8951]
[1730401066241,13.91367679,169.68,169.63,5.8951]
[1730401066436,13.91367679,169.68,169.63,20.633]
[1730401066642,13.91367679,169.69,169.63,34.54667679]
[1730401067034,19.93156679,169.71,169.65,13.91367679]
[1730401067441,19.93156679,169.71,169.65,19.80777679]
[1730401068158,19.93156679,169.71,169.63,30.4944]
[1730401068159,13.91367679,169.69,169.64,20.6315]
[1730401068332,13.91367679,169.68,169.64,20.6315]
[1730401069947,13.91367679,169.69,169.64,34.54517679]
[1730401070138,19.80667679,169.7,169.64,34.54517679]
[1730401070340,13.91367679,169.69,169.64,34.54517679]
[1730401071635,14.03916679,169.71,169.66,5.8941]
[1730401071859,13.91367679,169.7,169.66,5.8941]
[1730401072246,19.93156679,169.71,169.66,19.80777679]
[1730401073249,19.93156679,169.71,169.65,13.91367679]
[1730401073452,13.91367679,169.7,169.64,34.54547679]
[1730401079267,13.91367679,169.69,169.64,20.6318]
[1730401079455,13.91367679,169.67,169.64,14.737]
[1730401080248,13.91367679,169.65,169.59,16.4164]
[1730401080456,13.91367679,169.63,169.56,6.6002]
[1730401080653,0.12549,169.63,169.58,13.91367679]
[1730401081151,14.03916679,169.63,169.57,34.55347679]
[1730401081567,14.03916679,169.63,169.58,13.91367679]
[1730401082461,14.03916679,169.63,169.57,34.55347679]
[1730401082852,8.9096313,169.62,169.57,29.5494313]
[1730401083371,8.9096313,169.58,169.54,14.7455]
[1730401084671,8.9096313,169.58,169.54,20.6438]
[1730401085381,14.8058313,169.6,169.54,29.5534313]
[1730401086161,8.9096313,169.6,169.54,29.5534313]
[1730401086568,8.9096313,169.59,169.54,20.6438]
[1730401087863,8.9096313,169.59,169.54,29.5534313]
[1730401090676,0.12549,169.6,169.55,8.9096313]
[1730401090875,0.12549,169.6,169.56,8.9096313]
[1730401091470,0.12549,169.61,169.56,8.9096313]
[1730401091770,8.9096313,169.63,169.57,8.9096313]
[1730401091994,14.8045313,169.64,169.59,8.9096313]
[1730401092196,8.9096313,169.66,169.6,8.9096313]
[1730401092489,8.9096313,169.67,169.62,8.9096313]
[1730401092673,14.8034313,169.67,169.62,14.8049313]
[1730401093069,14.8034313,169.67,169.62,5.8953]
[1730401093471,47.74517154,169.72,169.64,8.9096313]
[1730401093472,8.9096313,169.69,169.64,8.9096313]
[1730401094071,8.9096313,169.68,169.63,8.9096313]
[1730401094663,8.9096313,169.68,169.64,5.8948]
[1730401095474,14.8028313,169.69,169.64,14.8044313]
[1730401095680,14.8028313,169.69,169.64,5.8948]
[1730401097871,8.9096313,169.67,169.62,20.634]
[1730401098468,9.0351213,169.68,169.62,29.5436313]
[1730401099074,8.9096313,169.67,169.61,8.9096313]
[1730401100093,14.9288213,169.68,169.62,8.9096313]
[1730401100298,14.9288213,169.68,169.63,8.9096313]
[1730401100794,14.9286213,169.68,169.63,8.9096313]
[1730401101894,8.9096313,169.67,169.62,29.5436313]
[1730401104582,14.9286213,169.68,169.62,29.5436313]
[1730401105110,8.9096313,169.67,169.62,20.634]
[1730401105309,0.12549,169.64,169.59,8.9096313]
[1730401105484,9.0351213,169.64,169.59,8.9096313]
[1730401106183,9.0351213,169.64,169.58,45.7270313]
[1730401106383,0.12549,169.64,169.59,8.9096313]
[1730401106702,6.02049,169.64,169.59,8.9096313]
[1730401107194,6.02049,169.64,169.6,8.9096313]
[1730401107609,5.8941,169.66,169.61,8.9096313]
[1730401107902,5.8941,169.66,169.62,8.9096313]
[1730401108279,5.8941,169.66,169.61,8.9096313]
[1730401108880,14.8037313,169.66,169.61,5.8957]
[1730401109209,14.8037313,169.66,169.61,14.8053313]
[1730401110182,0.12549,169.66,169.61,14.8053313]
[1730401110505,9.0351213,169.66,169.61,29.5449313]
[1730401110809,0.12549,169.66,169.61,29.5449313]
[1730401111009,9.0351213,169.66,169.61,29.5449313]
[1730401111386,14.9294213,169.66,169.61,29.5449313]
[1730401111587,14.9294213,169.66,169.61,20.6353]
[1730401111786,8.9096313,169.64,169.58,39.8303313]
[1730401112094,8.9096313,169.62,169.58,14.7418]
[1730401112483,20.75509,169.66,169.55,14.7447]
[1730401112484,8.9096313,169.6,169.55,14.7447]
[1730401112679,8.9096313,169.61,169.55,23.6543313]
[1730401112880,8.9096313,169.6,169.55,14.7447]
[1730401113382,5.8965,169.59,169.55,20.6426]
[1730401114398,8.9096313,169.6,169.55,20.6426]
[1730401114712,14.8059313,169.6,169.55,20.6426]
[1730401115690,8.9096313,169.59,169.55,14.7447]
[1730401116410,8.9096313,169.59,169.55,20.6426]
[1730401119307,8.9096313,169.57,169.52,29.5559313]
[1730401120507,14.8067313,169.58,169.52,29.5559313]
[1730401120705,14.8067313,169.58,169.53,8.9096313]
[1730401120914,5.8971,169.58,169.53,8.9096313]
[1730401121114,14.8067313,169.58,169.53,8.9096313]
[1730401121411,14.8067313,169.58,169.52,23.6569313]
[1730401121715,14.8067313,169.58,169.52,29.5558313]
[1730401122022,5.8971,169.58,169.53,8.9096313]
[1730401122517,5.8971,169.58,169.53,14.8080313]
[1730401123608,0.12549,169.58,169.53,29.5546313]
[1730401125001,6.02249,169.58,169.53,29.5546313]
[1730401125197,14.9321213,169.58,169.53,20.645]
[1730401125920,8.9096313,169.57,169.53,20.645]
[1730401126136,14.8070313,169.57,169.53,20.645]
[1730401126417,5.8974,169.57,169.53,20.645]
[1730401126717,5.8974,169.57,169.5,16.0009]
[1730401126718,8.9096313,169.54,169.5,36.6489]
[1730401126909,24.153354,169.56,169.48,20.6511]
[1730401126910,8.9096313,169.53,169.48,20.6511]
[1730401127217,8.9096313,169.53,169.48,14.751]
[1730401127392,8.9096313,169.54,169.48,23.6606313]
[1730401127593,0.12549,169.54,169.49,8.9096313]
[1730401127790,0.12549,169.54,169.5,8.9096313]
[1730401128111,8.9096313,169.57,169.52,8.9096313]
[1730401128307,14.8070313,169.57,169.52,8.9096313]
[1730401129297,8.9096313,169.57,169.52,8.9096313]
[1730401129795,14.8069313,169.57,169.52,8.9096313]
[1730401130328,14.8069313,169.57,169.53,5.8986]
[1730401131135,14.8069313,169.57,169.51,8.9096313]
[1730401131301,14.8069313,169.57,169.47,50.1557]
[1730401131302,14.8069313,169.57,169.52,8.9096313]
[1730401131928,5.8973,169.57,169.52,8.9096313]
[1730401132233,5.8973,169.57,169.52,14.8084313]
[1730401132724,5.8973,169.57,169.52,29.5559313]
[1730401133429,14.8069313,169.57,169.52,20.6463]
[1730401133612,8.9096313,169.56,169.52,20.6463]
[1730401133819,8.9096313,169.56,169.51,5.899]
[1730401134308,8.9096313,169.56,169.5,8.9096313]
[1730401134504,0.2,169.62,169.49,14.7497]
[1730401134505,9.0351213,169.54,169.49,14.7497]
[1730401134709,9.0351213,169.54,169.49,20.6497]
[1730401135109,9.0351213,169.54,169.49,29.5593313]
[1730401136032,6.02389,169.54,169.49,29.5593313]
[1730401137737,6.02389,169.54,169.5,8.9096313]
[1730401139315,6.02389,169.54,169.5,14.8092313]
[1730401141842,6.02389,169.54,169.49,23.6593313]
[1730401142140,14.9335213,169.54,169.49,23.6593313]
[1730401142340,6.02389,169.54,169.49,23.6593313]
[1730401142525,8.9096313,169.53,169.49,14.7497]
[1730401143043,5.8987,169.53,169.49,14.7497]
[1730401143234,14.8083313,169.53,169.49,14.7497]
[1730401143621,8.9096313,169.51,169.46,30.118]
[1730401143931,9.0351213,169.5,169.44,8.9096313]
[1730401144136,9.0351213,169.5,169.44,14.8113313]
[1730401144539,24.027864,169.49,169.44,8.9096313]
[1730401144725,0.12549,169.48,169.43,14.8116313]
[1730401145127,8.9096313,169.5,169.45,8.9096313]
[1730401145540,32.9374953,169.51,169.45,8.9096313]
[1730401145742,32.9374953,169.51,169.43,20.6573]
[1730401145743,8.9096313,169.5,169.44,8.9096313]
[1730401146337,14.8093313,169.5,169.45,5.9014]
[1730401146651,5.8997,169.5,169.45,14.8110313]
[1730401147540,14.8093313,169.5,169.45,14.8110313]
[1730401147938,9.0351213,169.49,169.44,8.9096313]
[1730401148447,24.027864,169.49,169.44,8.9096313]
[1730401148828,24.027864,169.49,169.45,8.9096313]
[1730401149034,29.928064,169.49,169.45,8.9096313]
[1730401150242,8.9096313,169.51,169.45,8.9096313]
[1730401150449,8.9096313,169.53,169.47,8.9096313]
[1730401150748,20.6418,169.56,169.48,8.9096313]
[1730401150749,8.9096313,169.54,169.48,8.9096313]
[1730401151051,5.8976,169.56,169.51,8.9096313]
[1730401151248,5.8974,169.57,169.53,8.9096313]
[1730401151949,5.8974,169.57,169.52,8.9096313]
[1730401152644,5.8974,169.57,169.52,14.8085313]
[1730401153125,0.12549,169.56,169.52,14.8085313]
[1730401154730,38.8346953,169.57,169.51,8.9096313]
[1730401155931,8.9096313,169.56,169.5,23.6579313]
[1730401156254,0.12549,169.55,169.5,29.5576313]
[1730401156438,9.0351213,169.55,169.5,29.5576313]
[1730401156640,9.0351213,169.56,169.5,29.5576313]
[1730401156836,0.12549,169.56,169.51,8.9096313]
[1730401157248,9.0351213,169.56,169.5,29.5576313]
[1730401157632,5.8979,169.55,169.5,29.5576313]
[1730401158749,32.9374953,169.54,169.49,8.9096313]
[1730401158949,24.027864,169.54,169.49,8.9096313]
[1730401159350,24.027864,169.54,169.5,8.9096313]
[1730401159851,29.926364,169.54,169.5,8.9096313]
[1730401167050,5.8978,169.56,169.51,8.9096313]
[1730401167245,5.8973,169.57,169.53,8.9096313]
[1730401169049,0.12549,169.56,169.53,8.9096313]
[1730401169462,0.12549,169.56,169.52,8.9096313]
[1730401169764,0.12549,169.56,169.51,14.8087313]
[1730401170464,6.02319,169.56,169.52,8.9096313]
[1730401170673,8.9096313,169.57,169.51,5.8991]
[1730401170674,0.12549,169.57,169.54,8.9096313]
[1730401170872,0.25098,169.57,169.53,8.9096313]
[1730401171361,0.25098,169.57,169.52,8.9096313]
[1730401171750,5.8976,169.56,169.53,8.9096313]
[1730401172252,6.02279,169.57,169.54,8.9096313]
[1730401172450,0.12549,169.58,169.55,8.9096313]
[1730401172657,8.9096313,169.61,169.56,8.9096313]
[1730401172658,5.8963,169.6,169.56,8.9096313]
[1730401174746,14.7395,169.62,169.56,8.9096313]
[1730401174747,8.9096313,169.62,169.56,8.9096313]
[1730401174949,24.027864,169.61,169.56,14.8070313]
[1730401175361,24.027864,169.61,169.57,8.9096313]
[1730401176265,5.8962,169.6,169.57,8.9096313]
[1730401176859,5.8962,169.6,169.56,8.9096313]
[1730401177748,5.8962,169.6,169.57,8.9096313]
[1730401177949,5.8962,169.6,169.56,8.9096313]
[1730401179351,14.8058313,169.6,169.54,29.5530313]
[1730401179764,5.8962,169.6,169.55,8.9096313]
[1730401180249,0.12549,169.59,169.54,29.5530313]
[1730401180953,5.8969,169.58,169.54,29.5530313]
[1730401181367,5.8969,169.58,169.56,8.9096313]
[1730401181563,5.8965,169.6,169.56,8.9096313]
[1730401181755,14.8040313,169.65,169.59,8.9096313]
[1730401181960,0.12549,169.64,169.59,8.9096313]
[1730401182851,5.8951,169.63,169.59,8.9096313]
[1730401183052,5.8951,169.63,169.6,8.9096313]
[1730401183276,5.8951,169.63,169.59,8.9096313]
[1730401184566,38.8322953,169.64,169.58,14.8062313]
[1730401185360,15.0554113,169.64,169.58,14.8062313]
[1730401186773,6.14578,169.64,169.59,8.9096313]
[1730401186983,6.14578,169.64,169.6,8.9096313]
[1730401187470,6.02029,169.64,169.6,8.9096313]
[1730401187882,6.02029,169.64,169.59,8.9096313]
[1730401188046,8.9096313,169.63,169.57,8.9096313]
[1730401188250,14.9299213,169.64,169.58,8.9096313]
[1730401189678,14.9299213,169.64,169.58,14.8065313]
[1730401190477,5.8941,169.66,169.62,8.9096313]
[1730401190681,5.8938,169.67,169.63,8.9096313]
[1730401191550,6.01889,169.68,169.63,8.9096313]
[1730401191777,0.25098,169.67,169.63,8.9096313]
[1730401192752,6.14508,169.67,169.63,8.9096313]
[1730401193258,5.8934,169.68,169.65,8.9096313]
[1730401193963,5.8934,169.68,169.64,8.9096313]
[1730401194167,5.8934,169.68,169.63,8.9096313]
[1730401194366,14.8030313,169.68,169.63,8.9096313]
[1730401194880,14.8030313,169.68,169.63,14.8047313]
[1730401195260,9.0351213,169.67,169.62,23.6484313]
[1730401195476,9.0351213,169.67,169.62,29.5438313]
[1730401196574,5.8941,169.66,169.62,29.5438313]
[1730401196760,14.8037313,169.66,169.61,8.9096313]
[1730401197168,5.8941,169.66,169.62,8.9096313]
[1730401197357,5.8934,169.68,169.64,8.9096313]
[1730401198451,8.9096313,169.69,169.64,8.9096313]
[1730401198779,9.0351213,169.69,169.63,8.9096313]
[1730401199181,8.9096313,169.68,169.63,8.9096313]
[1730401199478,0.12549,169.68,169.63,8.9096313]
[1730401200085,6.01919,169.68,169.63,8.9096313]
[1730401201292,14.9288213,169.68,169.62,23.6484313]
[1730401201455,9.0351213,169.65,169.6,8.9096313]
[1730401201663,9.0351213,169.65,169.59,29.5468313]
[1730401201859,9.0351213,169.65,169.59,23.6506313]